[Event "RUS-ch Girls U21 2021"]
[Site "Loo"]
[Date "2021.04.22"]
[Round "2.7"]
[White "Gelman, Inna"]
[Black "Shvedova, Alexandra"]
[Result "0-1"]
[ECO "A00"]
[WhiteElo "1801"]
[BlackElo "2000"]
[Annotator "NA"]
[PlyCount "74"]
[EventDate "2021.04.21"]
[EventType "swiss"]
[EventCountry "RUS"]
[SourceTitle "playchess.com"]
[Source "ChessBase"]
[SourceQuality "1"]
[TimeControl "40/5400+30:1800+30"]

1. g4 {[%emt 0:00:00]} d5 {[%emt 0:00:00]} 2. Bg2 {[%emt 0:00:00]} c6 {[%emt 0:03:34]} 3. g5 {[%emt 0:00:00]} e5 {[%emt 0:01:37]} 4. d3 {[%emt 0:00:00]} Bd6 {[%emt 0:04:25]} 5. e4 {[%emt 0:00:40]} d4 {[%emt 0:03:08]} 6. c3 {[%emt 0:01:29]} dxc3 {[%emt 0:02:40]} 7. bxc3 {[%emt 0:00:38]} Be6 {[%emt 0:06:09]} 8. Ne2 {[%emt 0:00:15]} h6 {[%emt 0:02:51]} 9. h4 {[%emt 0:05:14]} Na6 {[%emt 0:15:03]} 10. f4 {[%emt 0:04:42]} exf4 {[%emt 0:00:29]} 11. Nxf4 {[%emt 0:01:17]} Qc7 {[%emt 0:05:34]} 12. Qf3 {[%emt 0:03:37]} hxg5 {[%emt 0:08:22]} 13. Nxe6 {[%emt 0:03:10]} fxe6 {[%emt 0:00:09]} 14. Bxg5 {[%emt 0:04:15]} Ne7 {[%emt 0:03:05]} 15. Rf1 {[%emt 0:09:09]} O-O-O {[%emt 0:03:59]} 16. Qg4 {[%emt 0:06:01]} Kb8 {[%emt 0:04:37]} 17. Nd2 {[%emt 0:06:34]} Qa5 {[%emt 0:03:37]} 18. Ke2 {[%emt 0:15:41]} Qxc3 {[%emt 0:12:37]} 19. Rfc1 {[%emt 0:00:21]} Qd4 {[%emt 0:00:32]} 20. Be3 {[%emt 0:02:14]} Qa4 {[%emt 0:02:09]} 21. Nc4 {[%emt 0:05:16]} Bc5 {[%emt 0:02:29]} 22. Qxe6 {[%emt 0:03:56]} Bxe3 {[%emt 0:00:35]} 23. Kxe3 {[%emt 0:00:17]} Rhe8 {[%emt 0:01:17]} 24. Qe5+ {[%emt 0:01:25]} Ka8 {[%emt 0:00:11]} 25. Qa5 {[%emt 0:00:31]} Qxa5 {[%emt 0:01:34]} 26. Nxa5 {[%emt 0:00:08]} Nf5+ {[%emt 0:00:13]} 27. Ke2 {[%emt 0:00:54]} Nxh4 {[%emt 0:00:20]} 28. Bf1 {[%emt 0:06:50]} Nb4 {[%emt 0:01:29]} 29. Rc3 {[%emt 0:00:44]} Ng6 {[%emt 0:01:44]} 30. a3 {[%emt 0:03:30]} Nd5 {[%emt 0:01:17]} 31. Rb3 {[%emt 0:00:08]} Nb6 {[%emt 0:02:02]} 32. Rc1 {[%emt 0:01:13]} Ne5 {[%emt 0:02:35]} 33. Bg2 {[%emt 0:02:54]} g5 {[%emt 0:01:39]} 34. Rf1 {[%emt 0:01:12]} Ng6 {[%emt 0:00:30]} 35. Ke3 {[%emt 0:02:56]} Nf4 {[%emt 0:00:39]} 36. Rg1 {[%emt 0:00:37]} Rd5 {[%emt 0:01:51]} 37. Nc4 {[%emt 0:00:17]} Rxd3+ {[%emt 0:00:12]} 0-1

[Event "RUS-ch Girls U21 2021"]
[Site "Loo"]
[Date "2021.04.22"]
[Round "2.8"]
[White "Serditykh, Olesya"]
[Black "Emelyanova, Victoria"]
[Result "1-0"]
[ECO "D52"]
[WhiteElo "1961"]
[BlackElo "1765"]
[Annotator "ChessBase"]
[PlyCount "123"]
[EventDate "2021.04.21"]
[EventType "swiss"]
[EventCountry "RUS"]
[SourceTitle "playchess.com"]
[Source "ChessBase"]
[SourceQuality "1"]
[TimeControl "40/5400+30:1800+30"]

1. d4 {[%emt 0:00:00]} d5 {[%emt 0:00:00]} 2. Nf3 {[%emt 0:00:00]} Nf6 {[%emt 0:00:00]} 3. c4 {[%emt 0:00:00]} c6 {[%emt 0:00:15]} 4. Nc3 {[%emt 0:00:21]} e6 {[%emt 0:00:05]} 5. Bg5 {[%emt 0:03:16]} Nbd7 {[%emt 0:00:06]} 6. e3 {[%emt 0:01:01]} Qa5 {[%emt 0:00:17]} 7. Nd2 {[%emt 0:01:07]} Bb4 {[%emt 0:01:37]} 8. Qc2 {[%emt 0:03:13]} O-O {[%emt 0:03:48]} 9. Bxf6 {[%emt 0:05:52]} Nxf6 {[%emt 0:01:03]} 10. Bd3 {[%emt 0:00:56]} Re8 {[%emt 0:07:18]} 11. O-O {[%emt 0:02:49]} e5 {[%emt 0:10:38]} 12. Nb3 {[%emt 0:21:33]} Qc7 {[%emt 0:21:04]} 13. cxd5 {[%emt 0:12:49]} Bxc3 {[%emt 0:05:10]} 14. Qxc3 {[%emt 0:03:38]} Nxd5 {[%emt 0:07:53]} 15. Qd2 {[%emt 0:03:25]} e4 {[%emt 0:12:23]} 16. Bc4 {[%emt 0:03:55]} Nf6 {[%emt 0:03:54]} 17. h3 {[%emt 0:03:19]} Be6 {[%emt 0:06:26]} 18. Rfc1 {[%emt 0:00:15]} Rad8 {[%emt 0:02:32]} 19. Bxe6 {[%emt 0:01:00]} Rxe6 {[%emt 0:00:09]} 20. Nc5 {[%emt 0:00:52]} Re7 {[%emt 0:03:33]} 21. b4 {[%emt 0:00:57]} Rd5 {[%emt 0:02:24]} 22. Qc2 {[%emt 0:04:43]} Qd6 {[%emt 0:05:41]} 23. Rab1 {[%emt 0:02:20]} Rg5 {[%emt 0:02:15]} 24. a4 {[%emt 0:05:51]} Qd5 {[%emt 0:02:03]} 25. Qe2 {[%emt 0:06:55]} Qf5 {[%emt 0:00:57]} 26. Kh2 {[%emt 0:00:43]} Rh5 {[%emt 0:00:51]} 27. b5 {[%emt 0:01:16]} g5 {[%emt 0:00:33]} 28. bxc6 {[%emt 0:04:41]} bxc6 {[%emt 0:00:03]} 29. Nb7 {[%emt 0:00:32]} g4 {[%emt 0:00:53]} 30. Rc5 {[%emt 0:00:04]} Nd5 {[%emt 0:00:33]} 31. Nd6 {[%emt 0:02:09]} Qg5 {[%emt 0:00:30]} 32. Rb8+ {[%emt 0:00:25]} Kg7 {[%emt 0:00:11]} 33. Ne8+ {[%emt 0:02:16]} Kh6 {[%emt 0:00:53]} 34. Rxc6+ {[%emt 0:00:22]} f6 {[%emt 0:00:28]} 35. Qa6 {[%emt 0:02:00]} gxh3 {[%emt 0:00:29]} 36. g3 {[%emt 0:00:05]} Qf5 {[%emt 0:00:28]} 37. Rxf6+ {[%emt 0:00:31]} Nxf6 {[%emt 0:00:17]} 38. Qxf6+ {[%emt 0:00:04]} Qxf6 {[%emt 0:00:18]} 39. Nxf6 {[%emt 0:00:04]} Rg5 {[%emt 0:01:00]} 40. Ng8+ {[%emt 0:00:00]} Rxg8 {[%emt 0:00:00]} 41. Rxg8 {[%emt 0:00:10]} Rf7 {[%emt 0:01:14]} 42. Kxh3 {[%emt 0:00:34]} Rxf2 {[%emt 0:00:25]} 43. Re8 {[%emt 0:00:42]} Ra2 {[%emt 0:00:21]} 44. Rxe4 {[%emt 0:00:56]} Rxa4 {[%emt 0:00:12]} 45. Kg4 {[%emt 0:00:17]} a5 {[%emt 0:02:12]} 46. Kf5 {[%emt 0:01:17]} Ra1 {[%emt 0:00:46]} 47. d5 {[%emt 0:01:07]} a4 {[%emt 0:03:23]} 48. Re6+ {[%emt 0:01:06]} Kg7 {[%emt 0:01:09]} 49. Ra6 {[%emt 0:00:13]} a3 {[%emt 0:02:41]} 50. Ra7+ {[%emt 0:01:12]} Kf8 {[%emt 0:02:38]} 51. e4 {[%emt 0:03:22]} a2 {[%emt 0:02:16]} 52. Ke5 {[%emt 0:00:24]} Rg1 {[%emt 0:04:44]} 53. Rxa2 {[%emt 0:00:20]} Rxg3 {[%emt 0:00:02]} 54. Ra7 {[%emt 0:00:52]} h5 {[%emt 0:00:23]} 55. Rh7 {[%emt 0:00:18]} Rh3 {[%emt 0:02:09]} 56. d6 {[%emt 0:01:22]} Kg8 {[%emt 0:01:46]} 57. Re7 {[%emt 0:01:30]} Kf8 {[%emt 0:00:45]} 58. Ke6 {[%emt 0:00:08]} Re3 {[%emt 0:00:25]} 59. e5 {[%emt 0:00:10]} h4 {[%emt 0:00:17]} 60. Rh7 {[%emt 0:00:20]} h3 {[%emt 0:00:16]} 61. d7 {[%emt 0:00:12]} Rd3 {[%emt 0:00:13]} 62. Rh8+ 1-0

[Event "RUS-ch Girls U21 2021"]
[Site "Loo"]
[Date "2021.04.22"]
[Round "2.9"]
[White "Stroganova, Karina"]
[Black "Filippova, Darya"]
[Result "0-1"]
[ECO "A48"]
[WhiteElo "1731"]
[BlackElo "1915"]
[Annotator "NA"]
[PlyCount "80"]
[EventDate "2021.04.21"]
[EventType "swiss"]
[EventCountry "RUS"]
[SourceTitle "playchess.com"]
[Source "ChessBase"]
[SourceQuality "1"]
[TimeControl "40/5400+30:1800+30"]

1. d4 {[%emt 0:00:00]} Nf6 {[%emt 0:00:07]} 2. Nf3 {[%emt 0:00:50]} g6 {[%emt 0:01:20]} 3. c4 {[%emt 0:00:13]} Bg7 {[%emt 0:00:25]} 4. g3 {[%emt 0:00:17]} b6 {[%emt 0:03:54]} 5. Bg2 {[%emt 0:00:14]} Bb7 {[%emt 0:00:09]} 6. O-O {[%emt 0:00:18]} O-O {[%emt 0:01:54]} 7. Nc3 {[%emt 0:01:49]} d6 {[%emt 0:01:40]} 8. Re1 {[%emt 0:02:14]} Ne4 {[%emt 0:03:43]} 9. Qc2 {[%emt 0:02:20]} Nxc3 {[%emt 0:00:54]} 10. bxc3 {[%emt 0:01:54]} c5 {[%emt 0:01:04]} 11. e4 {[%emt 0:07:57]} Nc6 {[%emt 0:01:50]} 12. Be3 {[%emt 0:08:22]} Rc8 {[%emt 0:03:13]} 13. Rab1 {[%emt 0:10:02]} Ba6 {[%emt 0:02:43]} 14. Bf1 {[%emt 0:04:31]} Na5 {[%emt 0:02:40]} 15. Nd2 {[%emt 0:03:52]} cxd4 {[%emt 0:02:41]} 16. cxd4 {[%emt 0:00:22]} Qd7 {[%emt 0:01:26]} 17. Rec1 {[%emt 0:03:08]} Rc7 {[%emt 0:00:54]} 18. Qd1 {[%emt 0:08:10]} Rfc8 {[%emt 0:01:55]} 19. c5 {[%emt 0:01:51]} Bxf1 {[%emt 0:00:28]} 20. Qxf1 {[%emt 0:00:12]} dxc5 {[%emt 0:03:33]} 21. dxc5 {[%emt 0:00:46]} bxc5 {[%emt 0:00:51]} 22. Qa6 {[%emt 0:01:25]} Nb7 {[%emt 0:01:38]} 23. Qxa7 {[%emt 0:02:17]} Nd6 {[%emt 0:00:37]} 24. Qa5 {[%emt 0:04:37]} c4 {[%emt 0:00:57]} 25. Bb6 {[%emt 0:04:35]} Rc6 {[%emt 0:00:52]} 26. Qa4 {[%emt 0:05:23]} Qe6 {[%emt 0:01:20]} 27. Rb4 {[%emt 0:02:00]} h5 {[%emt 0:04:35]} 28. Qc2 {[%emt 0:02:00]} h4 {[%emt 0:01:56]} 29. a4 {[%emt 0:04:43]} Bh6 {[%emt 0:02:50]} 30. Re1 {[%emt 0:00:56]} Bxd2 {[%emt 0:04:01]} 31. Qxd2 {[%emt 0:00:09]} c3 {[%emt 0:01:04]} 32. Qh6 {[%emt 0:01:56]} Nf5 {[%emt 0:09:23]} 33. exf5 {[%emt 0:05:13]} Qxe1+ {[%emt 0:00:08]} 34. Kg2 {[%emt 0:00:03]} h3+ {[%emt 0:05:46]} 35. Qxh3 {[%emt 0:00:11]} c2 {[%emt 0:09:15]} 36. Rh4 {[%emt 0:06:15]} Qe5 {[%emt 0:00:29]} 37. Bd4 {[%emt 0:02:49]} Qd5+ {[%emt 0:00:13]} 38. f3 {[%emt 0:01:38]} Qxd4 {[%emt 0:00:08]} 39. Rxd4 {[%emt 0:00:08]} c1=Q {[%emt 0:00:19]} 40. f4 {[%emt 0:00:00]} Qb2+ {[%emt 0:00:00]} 0-1

[Event "RUS-ch Girls U21 2021"]
[Site "Loo"]
[Date "2021.04.22"]
[Round "2.10"]
[White "Pankova, Julia"]
[Black "Badmaeva, Baina"]
[Result "1/2-1/2"]
[ECO "B56"]
[WhiteElo "1884"]
[BlackElo "1751"]
[Annotator "NA"]
[PlyCount "103"]
[EventDate "2021.04.21"]
[EventType "swiss"]
[EventCountry "RUS"]
[SourceTitle "playchess.com"]
[Source "ChessBase"]
[SourceQuality "1"]
[TimeControl "40/5400+30:1800+30"]

1. e4 {[%emt 0:00:00]} c5 {[%emt 0:00:00]} 2. Nf3 {[%emt 0:00:00]} d6 {[%emt 0:00:00]} 3. d4 {[%emt 0:00:00]} cxd4 {[%emt 0:00:00]} 4. Nxd4 {[%emt 0:00:00]} Nf6 {[%emt 0:00:00]} 5. Nc3 {[%emt 0:00:00]} Nc6 {[%emt 0:00:09]} 6. Be3 {[%emt 0:01:43]} g6 {[%emt 0:00:07]} 7. Bc4 Bg7 {[%emt 0:00:11]} 8. f3 {[%emt 0:01:32]} O-O {[%emt 0:00:19]} 9. Bb3 {[%emt 0:00:08]} Qc7 {[%emt 0:11:50]} 10. h4 {[%emt 0:03:49]} h5 {[%emt 0:02:03]} 11. Nxc6 {[%emt 0:04:58]} bxc6 {[%emt 0:01:08]} 12. Qd2 {[%emt 0:01:27]} Rd8 {[%emt 0:00:41]} 13. O-O-O {[%emt 0:02:30]} Rb8 {[%emt 0:07:35]} 14. Bh6 {[%emt 0:07:30]} Bh8 {[%emt 0:02:51]} 15. Qg5 {[%emt 0:11:08]} d5 {[%emt 0:06:12]} 16. g4 {[%emt 0:14:07]} Be6 {[%emt 0:17:47]} 17. Ne2 {[%emt 0:11:40]} Kh7 {[%emt 0:23:00]} 18. Qe3 {[%emt 0:11:48]} Qa5 {[%emt 0:02:33]} 19. Bf4 {[%emt 0:10:33]} Rxb3 {[%emt 0:02:04]} 20. cxb3 {[%emt 0:03:55]} Qxa2 {[%emt 0:00:20]} 21. e5 {[%emt 0:00:30]} Rb8 {[%emt 0:00:30]} 22. Nd4 {[%emt 0:00:30]} c5 {[%emt 0:00:30]} 23. Nxe6 {[%emt 0:00:30]} Rxb3 {[%emt 0:00:30]} 24. Ng5+ {[%emt 0:10:10]} Kg8 {[%emt 0:07:44]} 25. Qxb3 {[%emt 0:00:30]} Qxb3 {[%emt 0:00:30]} 26. Bd2 {[%emt 0:00:30]} Nd7 {[%emt 0:00:30]} 27. f4 {[%emt 0:00:30]} f6 {[%emt 0:00:30]} 28. gxh5 {[%emt 0:00:30]} fxg5 {[%emt 0:00:30]} 29. hxg5 {[%emt 0:00:30]} gxh5 {[%emt 0:00:30]} 30. g6 {[%emt 0:00:30]} Nxe5 {[%emt 0:00:30]} 31. fxe5 {[%emt 0:00:30]} Bxe5 {[%emt 0:00:30]} 32. Bc3 {[%emt 0:00:30]} d4 {[%emt 0:00:30]} 33. Rxh5 {[%emt 0:00:30]} Bf4+ {[%emt 0:00:30]} 34. Bd2 {[%emt 0:00:30]} Qc4+ {[%emt 0:00:30]} 35. Kb1 {[%emt 0:00:30]} Qd3+ {[%emt 0:06:13]} 36. Kc1 {[%emt 0:02:27]} Bxd2+ {[%emt 0:02:45]} 37. Rxd2 {[%emt 0:00:06]} Qxg6 {[%emt 0:00:12]} 38. Rxc5 {[%emt 0:00:46]} Qg1+ {[%emt 0:00:19]} 39. Rd1 {[%emt 0:00:20]} Qe3+ {[%emt 0:00:11]} 40. Kb1 {[%emt 0:00:00]} e5 {[%emt 0:00:00]} 41. Rc8+ {[%emt 0:06:52]} Kf7 {[%emt 0:00:34]} 42. Rc7+ {[%emt 0:00:54]} Ke6 {[%emt 0:00:05]} 43. Rxa7 {[%emt 0:00:31]} Kd5 {[%emt 0:03:18]} 44. Ra3 {[%emt 0:07:07]} Qe2 {[%emt 0:01:35]} 45. Rad3 {[%emt 0:01:02]} Kc4 {[%emt 0:03:02]} 46. R3d2 {[%emt 0:00:33]} Qe3 {[%emt 0:03:50]} 47. Kc2 {[%emt 0:04:20]} e4 {[%emt 0:06:47]} 48. Rxd4+ {[%emt 0:00:30]} Qxd4 {[%emt 0:00:30]} 49. Rxd4+ {[%emt 0:00:30]} Kxd4 {[%emt 0:00:00]} 50. Kd2 {[%emt 0:00:39]} e3+ {[%emt 0:00:00]} 51. Ke2 {[%emt 0:00:05]} Kc4 {[%emt 0:00:00]} 52. Kxe3 {[%emt 0:00:06]} 1/2-1/2

[Event "RUS-ch Girls U21 2021"]
[Site "Loo"]
[Date "2021.04.23"]
[Round "3.1"]
[White "Nosacheva, Mariya"]
[Black "Afonasieva, Anna"]
[Result "1/2-1/2"]
[ECO "C54"]
[WhiteElo "2199"]
[BlackElo "2270"]
[Annotator "NA"]
[PlyCount "80"]
[EventDate "2021.04.21"]
[EventType "swiss"]
[EventCountry "RUS"]
[SourceTitle "playchess.com"]
[Source "ChessBase"]
[SourceQuality "1"]
[TimeControl "40/5400+30:1800+30"]

1. e4 {[%emt 0:00:00]} e5 {[%emt 0:00:00]} 2. Nf3 {[%emt 0:03:30]} Nc6 {[%emt 0:00:00]} 3. Bc4 {[%emt 0:00:26]} Bc5 {[%emt 0:00:16]} 4. c3 {[%emt 0:00:17]} Nf6 {[%emt 0:00:09]} 5. d4 {[%emt 0:01:12]} exd4 {[%emt 0:02:57]} 6. cxd4 {[%emt 0:00:06]} Bb4+ {[%emt 0:01:30]} 7. Bd2 {[%emt 0:04:36]} Bxd2+ {[%emt 0:02:49]} 8. Nbxd2 {[%emt 0:00:20]} d5 {[%emt 0:01:23]} 9. exd5 {[%emt 0:00:49]} Nxd5 {[%emt 0:00:40]} 10. Qb3 {[%emt 0:03:33]} Be6 {[%emt 0:05:06]} 11. Qxb7 Ndb4 {[%emt 0:05:51]} 12. Qb5 {[%emt 0:12:18]} Rb8 {[%emt 0:06:35]} 13. Qa4 {[%emt 0:04:37]} Bxc4 {[%emt 0:04:31]} 14. Nxc4 {[%emt 0:00:46]} O-O {[%emt 0:02:41]} 15. O-O {[%emt 0:05:11]} Nxd4 {[%emt 0:00:37]} 16. Nce5 {[%emt 0:02:15]} Nxf3+ {[%emt 0:04:27]} 17. Nxf3 {[%emt 0:00:18]} Qf6 {[%emt 0:01:12]} 18. Qxa7 {[%emt 0:02:07]} Qxb2 {[%emt 0:00:46]} 19. Qxc7 {[%emt 0:01:04]} Nxa2 {[%emt 0:00:29]} 20. h3 {[%emt 0:02:41]} Rbc8 21. Qe5 Nc3 {[%emt 0:02:42]} 22. Ra7 {[%emt 0:09:15]} Rce8 {[%emt 0:05:12]} 23. Re7 {[%emt 0:03:00]} Ne2+ {[%emt 0:04:34]} 24. Kh1 {[%emt 0:00:52]} Qxe5 {[%emt 0:00:13]} 25. Rxe5 {[%emt 0:00:09]} Rxe5 {[%emt 0:00:13]} 26. Nxe5 {[%emt 0:00:04]} Re8 {[%emt 0:00:16]} 27. Nf3 {[%emt 0:00:16]} Nf4 {[%emt 0:00:16]} 28. Re1 {[%emt 0:01:50]} Rxe1+ {[%emt 0:00:04]} 29. Nxe1 {[%emt 0:00:04]} f5 {[%emt 0:00:15]} 30. h4 {[%emt 0:00:50]} h6 {[%emt 0:00:21]} 31. g3 {[%emt 0:00:05]} Ne6 {[%emt 0:00:04]} 32. Kg2 {[%emt 0:00:11]} g5 {[%emt 0:00:15]} 33. hxg5 {[%emt 0:01:44]} hxg5 {[%emt 0:00:04]} 34. Nd3 {[%emt 0:01:22]} Kg7 {[%emt 0:00:08]} 35. f3 {[%emt 0:00:51]} Kf6 {[%emt 0:00:07]} 36. Kf2 {[%emt 0:00:12]} Nd4 {[%emt 0:00:09]} 37. Ke3 {[%emt 0:00:14]} Nc2+ {[%emt 0:00:04]} 38. Kd2 {[%emt 0:00:19]} Nd4 {[%emt 0:00:06]} 39. Ke3 {[%emt 0:00:04]} Nc2+ {[%emt 0:00:05]} 40. Kd2 {[%emt 0:00:00]} Nd4 {[%emt 0:00:00]} 1/2-1/2

[Event "RUS-ch Girls U21 2021"]
[Site "Loo"]
[Date "2021.04.23"]
[Round "3.2"]
[White "Goltseva, Ekaterina"]
[Black "Shafigullina, Zarina"]
[Result "1-0"]
[ECO "E15"]
[WhiteElo "2269"]
[BlackElo "2293"]
[Annotator "NA"]
[PlyCount "83"]
[EventDate "2021.04.21"]
[EventType "swiss"]
[EventCountry "RUS"]
[SourceTitle "playchess.com"]
[Source "ChessBase"]
[SourceQuality "1"]
[TimeControl "40/5400+30:1800+30"]

1. d4 {[%emt 0:00:00]} Nf6 {[%emt 0:00:00]} 2. c4 {[%emt 0:00:00]} e6 {[%emt 0:00:00]} 3. Nf3 {[%emt 0:00:00]} b6 {[%emt 0:00:00]} 4. g3 {[%emt 0:00:00]} Ba6 {[%emt 0:00:00]} 5. Qc2 {[%emt 0:00:08]} Bb7 {[%emt 0:00:04]} 6. Bg2 {[%emt 0:00:10]} c5 {[%emt 0:00:05]} 7. d5 {[%emt 0:00:03]} exd5 {[%emt 0:00:13]} 8. cxd5 {[%emt 0:00:04]} Bxd5 {[%emt 0:05:14]} 9. Nc3 {[%emt 0:00:40]} Bb7 {[%emt 0:02:32]} 10. O-O {[%emt 0:06:42]} Nc6 {[%emt 0:03:04]} 11. e4 {[%emt 0:19:48]} Be7 {[%emt 0:09:04]} 12. Rd1 {[%emt 0:14:26]} O-O {[%emt 0:06:08]} 13. e5 {[%emt 0:03:26]} Ne8 {[%emt 0:00:21]} 14. Qf5 {[%emt 0:14:01]} Bc8 {[%emt 0:27:42]} 15. Nd5 {[%emt 0:04:12]} Nc7 {[%emt 0:10:41]} 16. Ng5 {[%emt 0:12:31]} g6 {[%emt 0:00:18]} 17. Qh3 {[%emt 0:02:35]} h5 {[%emt 0:00:56]} 18. Nxe7+ {[%emt 0:02:33]} Qxe7 {[%emt 0:00:43]} 19. Bf4 {[%emt 0:03:19]} Rb8 {[%emt 0:18:02]} 20. g4 {[%emt 0:08:44]} Nd4 {[%emt 0:07:09]} 21. Rxd4 {[%emt 0:02:19]} cxd4 {[%emt 0:00:04]} 22. Ne4 {[%emt 0:01:22]} Qe6 {[%emt 0:04:45]} 23. Nf6+ {[%emt 0:00:40]} Kg7 {[%emt 0:00:15]} 24. Qh4 {[%emt 0:00:17]} Bb7 {[%emt 0:02:29]} 25. Qg5 {[%emt 0:02:07]} Rh8 {[%emt 0:00:42]} 26. gxh5 {[%emt 0:00:09]} Bxg2 {[%emt 0:01:01]} 27. h6+ {[%emt 0:00:11]} Kf8 {[%emt 0:00:16]} 28. Qxg2 {[%emt 0:00:05]} Ne8 {[%emt 0:00:54]} 29. Ne4 {[%emt 0:02:14]} Rc8 {[%emt 0:00:20]} 30. Rd1 {[%emt 0:01:03]} Qxa2 {[%emt 0:00:35]} 31. Qh3 {[%emt 0:00:59]} Qd5 {[%emt 0:00:46]} 32. Qa3+ {[%emt 0:00:33]} Kg8 {[%emt 0:00:05]} 33. Qd3 {[%emt 0:00:20]} Rc4 {[%emt 0:01:19]} 34. b3 {[%emt 0:00:40]} Rc8 {[%emt 0:00:37]} 35. Qxd4 {[%emt 0:00:28]} Qxd4 {[%emt 0:00:16]} 36. Rxd4 {[%emt 0:00:04]} f5 {[%emt 0:00:31]} 37. exf6 {[%emt 0:00:24]} Kf7 {[%emt 0:00:19]} 38. Rxd7+ {[%emt 0:00:44]} Ke6 {[%emt 0:00:04]} 39. Re7+ {[%emt 0:00:07]} Kf5 {[%emt 0:00:13]} 40. Bg3 {[%emt 0:00:00]} Nxf6 {[%emt 0:00:00]} 41. Re5+ {[%emt 0:01:55]} Kg4 {[%emt 0:01:18]} 42. Kg2 {[%emt 0:00:58]} 1-0

[Event "RUS-ch Girls U21 2021"]
[Site "Loo"]
[Date "2021.04.23"]
[Round "3.3"]
[White "Sakorenko, Adriana"]
[Black "Garmash, Aliona"]
[Result "1-0"]
[ECO "B15"]
[WhiteElo "2216"]
[BlackElo "2120"]
[Annotator "NA"]
[PlyCount "81"]
[EventDate "2021.04.21"]
[EventType "swiss"]
[EventCountry "RUS"]
[SourceTitle "playchess.com"]
[Source "ChessBase"]
[SourceQuality "1"]
[TimeControl "40/5400+30:1800+30"]

1. e4 {[%emt 0:00:00]} c6 {[%emt 0:00:00]} 2. d4 {[%emt 0:00:00]} d5 {[%emt 0:00:00]} 3. Nc3 {[%emt 0:00:00]} dxe4 {[%emt 0:00:00]} 4. Nxe4 {[%emt 0:00:00]} Nf6 {[%emt 0:00:00]} 5. Nxf6+ {[%emt 0:00:12]} exf6 {[%emt 0:00:02]} 6. c3 {[%emt 0:00:26]} Bd6 {[%emt 0:00:07]} 7. Bd3 {[%emt 0:00:08]} Na6 {[%emt 0:00:29]} 8. Ne2 {[%emt 0:00:59]} Nc7 {[%emt 0:00:05]} 9. Qc2 {[%emt 0:01:23]} h5 {[%emt 0:00:07]} 10. h3 {[%emt 0:04:38]} Kf8 {[%emt 0:08:06]} 11. a3 {[%emt 0:06:42]} g6 {[%emt 0:19:34]} 12. c4 {[%emt 0:05:44]} Kg7 {[%emt 0:01:44]} 13. O-O {[%emt 0:05:19]} h4 {[%emt 0:01:36]} 14. Be3 {[%emt 0:05:31]} Be6 {[%emt 0:14:28]} 15. Rad1 {[%emt 0:08:06]} Qd7 {[%emt 0:11:03]} 16. Nf4 {[%emt 0:01:41]} Bxf4 {[%emt 0:06:59]} 17. Bxf4 {[%emt 0:00:07]} g5 {[%emt 0:00:05]} 18. Bh2 {[%emt 0:11:13]} g4 {[%emt 0:08:40]} 19. hxg4 {[%emt 0:00:18]} Bxg4 {[%emt 0:00:05]} 20. f3 {[%emt 0:04:15]} Be6 {[%emt 0:01:06]} 21. Kh1 {[%emt 0:01:41]} Rh5 {[%emt 0:01:24]} 22. Qc1 {[%emt 0:13:33]} Bf5 {[%emt 0:10:05]} 23. Qf4 {[%emt 0:02:38]} Bxd3 {[%emt 0:00:11]} 24. Rxd3 {[%emt 0:00:04]} Ne6 {[%emt 0:00:29]} 25. Qg4+ {[%emt 0:04:29]} Rg5 {[%emt 0:00:06]} 26. Qh3 {[%emt 0:00:19]} f5 {[%emt 0:05:02]} 27. d5 {[%emt 0:03:46]} Nc5 {[%emt 0:03:03]} 28. Rd4 {[%emt 0:08:12]} Rh8 {[%emt 0:04:29]} 29. Rxh4 {[%emt 0:00:36]} Rxh4 {[%emt 0:00:07]} 30. Qxh4 {[%emt 0:00:03]} f6 {[%emt 0:01:01]} 31. b4 {[%emt 0:03:37]} Na4 {[%emt 0:01:18]} 32. d6 {[%emt 0:00:58]} Nb6 {[%emt 0:01:23]} 33. Re1 {[%emt 0:02:06]} Nc8 {[%emt 0:00:06]} 34. Bf4 {[%emt 0:01:32]} Rg6 {[%emt 0:00:19]} 35. c5 {[%emt 0:01:03]} b6 {[%emt 0:02:03]} 36. Qf2 {[%emt 0:01:46]} bxc5 {[%emt 0:00:37]} 37. bxc5 {[%emt 0:00:05]} Kf8 {[%emt 0:01:12]} 38. Qe3 {[%emt 0:02:03]} Qh7+ {[%emt 0:01:04]} 39. Kg1 {[%emt 0:00:12]} Qf7 {[%emt 0:00:41]} 40. Bh6+ {[%emt 0:00:00]} Kg8 {[%emt 0:00:00]} 41. Qe8+ {[%emt 0:01:27]} 1-0